Cogmind - Beta 10.2 @@@ ROGUE MODE // 2021.07.16 @ 13:54:05 // AFD2019/Pay2Buy Player: youngster Result: Destroyed by G-47 Trooper with Particle Gun Performance ------------- Evolutions (2) 1000 Regions Visited (5) 1000 Robots Destroyed (29) 145 Value Destroyed (718) 718 Prototype IDs (39) 780 Alien Tech Used (0) 0 Bonus (300) 300 TOTAL SCORE: 3943 Bonus ------- Aligned with FarCom 300 Cogmind --------- Core Integrity 0/550 Matter 240/300 Energy 100/100 System Corruption 0% Temperature Cool (9) Movement Core (50) Location -8/Materials Parts ------- > --- POWER (2) -------- (None) > --- PROPULSION (3) --- (None) > --- UTILITY (3) ------ Advanced Salvage Targeting Computer > --- WEAPON (3) ------- (None) > --- INVENTORY (10) --- Light Cannon Grenade Launcher Datajack Peak State ------------ > --- POWER ------------ Light Ion Engine > --- PROPULSION ------- Improved Treads Improved Treads Gravmag System > --- UTILITY ---------- Light Armor Plating Long-range Tractor Beam > --- WEAPON ----------- Slug Cannon > --- INVENTORY -------- Improved Treads Light Cannon Grenade Launcher Rocket Launcher Datajack [Rating: 17] Favorites ----------- Power Light Ion Engine Engine Light Ion Engine Propulsion Improved Treads Treads Improved Treads Hover Unit Gravmag System Utility Long-range Tractor Beam Device Long-range Tractor Beam Processor Advanced Salvage Targeting Computer Protection Light Armor Plating Weapon Assault Rifle Ballistic Gun Assault Rifle Ballistic Cannon Slug Cannon Launcher Grenade Launcher Special Melee Weapon Datajack Build | -11 -10 -10 -10 -9 -8 ------- Run | Scr Mat Min Exi Min Mat Slots Evolved 4 | . . . . . 4 Power 1 | . . . . . 1 Propulsion 1 | . . . . . 1 Utility 1 | . . . . . 1 Weapon 1 | . . . . . 1 Parts Attached 9 | . 2 . 1 1 5 Power . | . . . . . . Engine . | . . . . . . Core . | . . . . . . Reactor . | . . . . . . Propulsion 3 | . . . . . 3 Treads 2 | . . . . . 2 Leg . | . . . . . . Wheel . | . . . . . . Hover 1 | . . . . . 1 Flight . | . . . . . . Utility . | . . . . . . Device . | . . . . . . Storage . | . . . . . . Processor . | . . . . . . Hackware . | . . . . . . Protection . | . . . . . . Artifact . | . . . . . . Weapon 6 | . 2 . 1 1 2 Energy Gun . | . . . . . . Energy Cannon . | . . . . . . Ballistic Gun . | . . . . . . Ballistic Cannon 3 | . 1 . . 1 1 Launcher 2 | . 1 . . . 1 Special Weapon . | . . . . . . Impact Weapon . | . . . . . . Slashing Weapon . | . . . . . . Piercing Weapon . | . . . . . . Special Melee Weapon 1 | . . . 1 . . Unidentified Prototypes . | . . . . . . Parts Lost 14 | . . . . 1 13 Power 1 | . . . . . 1 Propulsion 5 | . . . . . 5 Utility 4 | . . . . . 4 Weapon 4 | . . . . 1 3 Highest Loss Streak 7 | . . . . 1 7 Average Slot Usage (%) 85 | . 79 100 100 95 47 Engine 12 | . 14 14 14 14 6 Treads 27 | . 28 28 28 28 22 Device 12 | . 14 14 14 14 6 Protection 10 | . 6 14 14 14 1 Ballistic Gun 10 | . 14 14 14 9 . Ballistic Cannon 5 | . 1 14 . 11 7 Special Melee Weapon 4 | . . . 14 2 . Naked Turns 9 | . . . . . 9 Heaviest Build 16 | 7 12 12 10 16 14 Greatest Support 69 | 46 46 46 46 46 69 Greatest Overweight (x) 2 | . . . . . 2 Average Overweight (x) . | . . . . . . Largest Inventory Capacity 10 | 10 10 10 10 10 10 Average Capacity 10 | 10 10 10 10 10 10 Most Carried 6 | 2 3 3 3 6 6 Average Carried 3 | 1 2 3 3 4 4 Final Capacity 10 | 10 10 10 10 10 10 Final Carried 6 | 2 3 3 3 6 3 Class Distribution -------------------- 100% | Mutant Dominant Class ---------------- Mutant | -10/Materials Mutant | -10/Mines Mutant | -10/Exiles Mutant | -9/Mines Mutant | -8/Materials Resources | -11 -10 -10 -10 -9 -8 ----------- Run | Scr Mat Min Exi Min Mat Matter Collected 755 | . 258 73 . 98 326 Remotely 627 | . 258 73 . 98 198 Salvage Created 832 | . 258 73 . 103 398 Parts . | . . . . . . Haulers Intercepted 2 | . 1 . . . 1 Recyclers Shooed . | . . . . . . Parts Field Recycled . | . . . . . . Retrieved Matter . | . . . . . . Parts Self-Destructed . | . . . . . . Prevented . | . . . . . . Kills | -11 -10 -10 -10 -9 -8 ------- Run | Scr Mat Min Exi Min Mat Combat Hostiles Destroyed 19 | . 7 . . 3 9 Guns 9 | . 7 . . . 2 Cannons 7 | . . . . 3 4 AOE 3 | . . . . . 3 Classes Destroyed 8 | . 5 1 . 1 1 Worker 5 | . 3 . . . 2 Tunneler 1 | . 1 . . . . Hauler 2 | . 1 . . . 1 Recycler 2 | . . 1 . . 1 Swarmer 6 | . 6 . . . . Grunt 10 | . 1 . . 2 7 Brawler 1 | . . . . 1 . Sentry 2 | . . . . . 2 Best Kill Streak 9 | . 4 1 . 3 9 Combat Bots Only 6 | . 3 . . 3 6 Max Kills in Single Turn 3 | . 1 1 . 1 3 Gunslinging . | . . . . . . Exploded 1 | . . . . . 1 Melee . | . . . . . . Uniques/NPCs Destroyed . | . . . . . . Combat | -11 -10 -10 -10 -9 -8 -------- Run | Scr Mat Min Exi Min Mat Damage Taken 2086 | . 370 . . 81 1635 Core 610 | . 49 . . . 561 Absorbed by Shields . | . . . . . . Core Remaining (%) 90 | 100 . . . 80 . Volleys Fired 134 | . 49 6 . 6 73 Largest 2 | . 2 2 . 2 1 Hottest 68 | . 50 55 . 68 48 Shots Fired 144 | . 50 12 . 9 73 Gun 69 | . 49 6 . 3 11 Cannon 71 | . . 6 . 6 59 Launcher 4 | . 1 . . . 3 Special . | . . . . . . Kinetic 140 | . 49 12 . 9 70 Thermal . | . . . . . . Explosive 4 | . 1 . . . 3 Electromagnetic . | . . . . . . Robot Hit Streak 7 | . 5 7 . 6 7 Robot Miss Streak 4 | . 4 2 . 3 4 Penetration Max . | . . . . . . Secondary Targets . | . . . . . . Shots Hit Robots 106 | . 27 9 21 6 43 Core Hits 56 | . 14 1 . 3 38 Critical Hits 4 | . . . . 1 3 Critical Kills . | . . . . . . Critical Parts Destroyed 2 | . . . . . 2 Melee Attacks 21 | . . . 21 . . Impact . | . . . . . . Slashing . | . . . . . . Piercing . | . . . . . . Sneak Attacks 17 | . . . 17 . . Combat Hostiles . | . . . . . . Follow-up Attacks . | . . . . . . Damage Inflicted 2427 | . 351 177 . 193 1706 Guns 570 | . 347 76 . 21 126 Cannons 1254 | . . 85 . 158 1011 Explosions 549 | . . . . . 549 Melee . | . . . . . . Ramming 54 | . 4 16 . 14 20 Kinetic 1824 | . 347 161 . 179 1137 Thermal . | . . . . . . Explosive 305 | . . . . . 305 Electromagnetic 244 | . . . . . 244 Impact . | . . . . . . Slashing . | . . . . . . Piercing . | . . . . . . Highest Corruption 4 | . . . . 4 . Average Corruption 4 | . . . . 4 . Corruption Purged . | . . . . . . Effects 3 | . . . . 3 . Message Errors 1 | . . . . 1 . Matter Fused 1 | . . . . 1 . Data Loss (minor) 1 | . . . . 1 . Overload Shots . | . . . . . . Overflow Damage 45 | . . 3 . . 42 Projectiles 17 | . . 3 . . 14 Explosions 28 | . . . . . 28 Melee . | . . . . . . Knockbacks 8 | . . 2 . . 6 Impact . | . . . . . . Kinetic 8 | . . 2 . . 6 Secondary . | . . . . . . Self-Inflicted Damage 218 | . . . . . 218 Shots 5 | . . . . . 5 Rammed 27 | . 2 4 . 7 14 Targets Rammed 27 | . 2 4 . 7 14 Kicked . | . . . . . . Crushed . | . . . . . . Highest Temperature 96 | . . 6 . 96 51 Average Temperature 14 | . . 3 . 40 9 Received Heat Transfer 756 | . 12 . . 24 720 Siege Activations . | . . . . . . Robots Corrupted . | . . . . . . Combat Hostiles . | . . . . . . Parts Fried . | . . . . . . Impact Corruptions . | . . . . . . Robots Melted . | . . . . . . Combat Hostiles . | . . . . . . Parts Melted . | . . . . . . Heat Transferred . | . . . . . . Parts Sabotaged . | . . . . . . Parts Stolen . | . . . . . . Parts Stripped . | . . . . . . Power Chain Reactions . | . . . . . . Missiles Intercepted . | . . . . . . Alert | -11 -10 -10 -10 -9 -8 ------- Run | Scr Mat Min Exi Min Mat Peak Influence 262 | . 213 26 . 70 262 Initial 27 | . . 21 . . 27 Average 67 | . 55 22 . 23 173 Maximum Alert Level 1 | . 1 . . . 1 Low Security (%) 94 | 100 99 100 . 100 74 Level 1 5 | . . . . . 25 Level 2 . | . . . . . . Level 3 . | . . . . . . Level 4 . | . . . . . . Level 5 . | . . . . . . High Security . | . . . . . . Max Security . | . . . . . . Squads Dispatched 3 | . . . . . 3 Investigation 1 | . . . . . 1 Extermination . | . . . . . . Reinforcement 1 | . . . . . 1 Assault . | . . . . . . Garrison 1 | . . . . . 1 Intercept . | . . . . . . Construction Impeded . | . . . . . . Haulers Reinforced . | . . . . . . Stealth | -11 -10 -10 -10 -9 -8 --------- Run | Scr Mat Min Exi Min Mat Distress Signals 5 | . 1 . . . 4 Communications Jammed . | . . . . . . Distress Signals . | . . . . . . Times Spotted 34 | . 12 . . 3 19 Peak Tracking Total 9 | . 5 . . 3 9 Tactical Retreats 2 | . . . . . 2 Traps | -11 -10 -10 -10 -9 -8 ------- Run | Scr Mat Min Exi Min Mat Traps Triggered . | . . . . . . Indirectly . | . . . . . . Trap Hack Attempts . | . . . . . . Triggered . | . . . . . . Disarmed . | . . . . . . Reprogrammed . | . . . . . . Reused . | . . . . . . Traps Extracted . | . . . . . . Installed . | . . . . . . Triggered . | . . . . . . Machines | -11 -10 -10 -10 -9 -8 ---------- Run | Scr Mat Min Exi Min Mat Machines Disabled 7 | . . . . . 7 Max in Single Turn 3 | . . . . . 3 Machines Sabotaged . | . . . . . . Garrisons Compromised . | . . . . . . Overloaded Fab Kills . | . . . . . . Fab Network Shutdowns . | . . . . . . Hacking | -11 -10 -10 -10 -9 -8 --------- Run | Scr Mat Min Exi Min Mat Machines Accessed 7 | . 4 . 2 . 1 Terminals 5 | . 4 . . . 1 Fabricators . | . . . . . . Repair Stations . | . . . . . . Recycling Units . | . . . . . . Scanalyzers . | . . . . . . Garrison Access . | . . . . . . Total Hacks 13 | . 8 . 2 . 3 Successful 8 | . 5 . 2 . 1 Failed 5 | . 3 . . . 2 Catastrophic 2 | . 1 . . . 1 Database Lockouts . | . . . . . . Manual 1 | . . . 1 . . Terminals 11 | . 8 . . . 3 Fabricators . | . . . . . . Repair Stations . | . . . . . . Recycling Units . | . . . . . . Scanalyzers . | . . . . . . Garrison Access . | . . . . . . Terminal Hacks 8 | . 5 . 2 . 1 Record 1 | . . . 1 . . Prototype ID Bank 1 | . 1 . . . . Emergency Access Points 1 | . 1 . . . . Alert Level 1 | . 1 . . . . Unreport Threat 1 | . . . . . 1 Locate Traps 2 | . 2 . . . . EX-Prototype ID Bank 1 | . . . 1 . . Fabricator Hacks . | . . . . . . Repair Station Hacks . | . . . . . . Recycling Unit Hacks . | . . . . . . Scanalyzer . | . . . . . . Garrison Access Hacks . | . . . . . . Unauthorized Hacks . | . . . . . . Terminals . | . . . . . . Fabricators . | . . . . . . Repair Stations . | . . . . . . Recycling Units . | . . . . . . Scanalyzers . | . . . . . . Garrison Access . | . . . . . . Data Cores Recovered . | . . . . . . Used . | . . . . . . Hacking Detections 5 | . 4 . . . 1 Full Trace Events 1 | . . . . . 1 Feedback Events . | . . . . . . Feedback Blocked . | . . . . . . Robot Schematics Acquired . | . . . . . . Robots Built . | . . . . . . Matter . | . . . . . . Time . | . . . . . . Total Robot Build Rating . | . . . . . . Part Schematics Acquired . | . . . . . . Parts Built . | . . . . . . Matter . | . . . . . . Time . | . . . . . . Total Part Build Rating . | . . . . . . Parts Repaired . | . . . . . . Time . | . . . . . . Parts Recycled . | . . . . . . Recycled Matter . | . . . . . . Retrieved Matter . | . . . . . . Retrieved Components . | . . . . . . Parts Scanalyzed . | . . . . . . Part Schematics Acquired . | . . . . . . Parts Damaged . | . . . . . . Bothacking | -11 -10 -10 -10 -9 -8 ------------ Run | Scr Mat Min Exi Min Mat Used RIF Installer . | . . . . . . Robots Hacked 12 | . . . 12 . . Non-combat 3 | . . . 3 . . Combat 9 | . . . 9 . . Robot Hacks Applied 15 | . . . 15 . . parse_system 15 | . . . 15 . . Relay Couplers Released . | . . . . . . Robots Rewired . | . . . . . . Allies Hacked . | . . . . . . Hacks Repelled . | . . . . . . Allies | -11 -10 -10 -10 -9 -8 -------- Run | Scr Mat Min Exi Min Mat Total Allies . | . . . . . . Largest Group . | . . . . . . Highest-Rated Group . | . . . . . . Highest-Rated Ally . | . . . . . . Total Orders . | . . . . . . Ally Attacks . | . . . . . . Total Damage . | . . . . . . Kills . | . . . . . . Allies Corrupted . | . . . . . . Allies Melted . | . . . . . . Intel | -11 -10 -10 -10 -9 -8 ------- Run | Scr Mat Min Exi Min Mat Robot Analysis Total . | . . . . . . Derelict Logs Recovered . | . . . . . . Drone Launches . | . . . . . . Drone Recoveries . | . . . . . . Exploration | -11 -10 -10 -10 -9 -8 ------------- Run | Scr Mat Min Exi Min Mat Turns Passed 2796 | 30 635 199 873 623 436 Spaces Moved 1494 | 19 329 110 519 372 145 Core 23 | . . . . . 23 Treads 1471 | 19 329 110 519 372 122 Legs . | . . . . . . Wheels . | . . . . . . Hover . | . . . . . . Flight . | . . . . . . Fastest Speed 50 | 160 160 160 160 160 50 Average Speed 158 | 160 160 160 160 160 144 Slowest Speed 160 | 160 160 160 160 160 160 Overloaded Moves . | . . . . . . Propulsion Burnouts . | . . . . . . Robots Hopped . | . . . . . . Cave-ins Triggered . | . . . . . . Exploration Rate (%) 49 | 3 62 31 88 85 30 Regions Visited 5 Branch Regions 3 Pre-discovered Areas 1 | . . . 1 . . Known Exits Taken . | . . . . . . Unknown Exits Taken 5 | 1 1 1 1 1 . Scrap Searched . | . . . . . . Spaces Dug . | . . . . . . Terrain Destroyed 114 | . 10 . . 1 103 Melee . | . . . . . . Projectile 17 | . . . . 1 16 AOE 97 | . 10 . . . 87 Terrain Rammed . | . . . . . . Walls Destroyed . | . . . . . . Machines Disabled . | . . . . . . Actions | -11 -10 -10 -10 -9 -8 --------- Run | Scr Mat Min Exi Min Mat Total 1745 | 19 387 119 540 387 293 Wait 59 | . 5 . . . 54 Move 1489 | 18 328 109 518 371 145 Hop . | . . . . . . Pick Up 1 | . . . . 1 . Fast Attach 1 | . . . . 1 . Attach 6 | . 1 . . . 5 Detach 5 | 1 1 . . 1 2 Swap 2 | . 1 . 1 . . Drop . | . . . . . . Fire 134 | . 49 6 . 6 73 Melee 21 | . . . 21 . . Ram 3 | . . . . . 3 Kick . | . . . . . . Crush 24 | . 2 4 . 7 11 Escape Stasis . | . . . . . . Rewire . | . . . . . . Trap . | . . . . . . Miscellaneous . | . . . . . . Route ------- -11/Scrapyard -10/Materials (discovered 4 exits: [*Mat x2] / [*Min x2]) -10/Mines -10/Exiles -9/Mines (discovered 2 exits: *Mat x2) -8/Materials History --------- Turn | Location | Event 8 | -11/Scrapyard | Discovered new exit (range 14) 31 | -11/Scrapyard | Entered Materials 198 | -10/Materials | Discovered new exit (range 3) 214 | -10/Materials | Discovered new exit (range 13) 317 | -10/Materials | Build established: Mutant 477 | -10/Materials | Discovered new exit (range 15) 639 | -10/Materials | Discovered new exit (range 15) 666 | -10/Materials | Entered Mines 859 | -10/Mines | Deemed a non-threat by the Exiles lab entrance 859 | -10/Mines | Discovered new exit (range 5) 865 | -10/Mines | Entered Exiles 888 | -10/Exiles | Discovered new exit (range 15) 910 | -10/Exiles | Met 8R-AWN 935 | -10/Exiles | Met EX-HEX 1051 | -10/Exiles | Met EX-DEC 1115 | -10/Exiles | Visited The Gauntlet 1316 | -10/Exiles | Learned location of Zion (-6) 1423 | -10/Exiles | Met EX-BIN 1448 | -10/Exiles | Aligned with FarCom system 1449 | -10/Exiles | Given EX-Vault access code 1486 | -10/Exiles | Opened EX-Vault 1525 | -10/Exiles | Warned to stay clear of 0b10 Research branches 1738 | -10/Exiles | Entered Mines 1844 | -9/Mines | A weapon hastily lodged in a ceiling crevice suddenly fell to the ground 2054 | -9/Mines | Received a Rocket Launcher from a helpful Derelict 2254 | -9/Mines | Discovered new exit (range 8) 2292 | -9/Mines | Discovered new exit (range 4) 2361 | -9/Mines | Entered Materials 2361 | -8/Materials | Evolved 4 slots: Power x1, Propulsion x1, Utility x1, Weapon x1 2772 | -8/Materials | Garrison activated, responded to threat 2782 | -8/Materials | Core integrity fell below 50% 2791 | -8/Materials | Core integrity fell below 20% 2797 | -8/Materials | Destroyed by G-47 Trooper with Particle Gun Last Messages --------------- 02782_ Hpw. Tractor Beam destroyed. 02783_ Flak Gun destroyed. 02783_ Slammed into G-47 Trooper. 02783_ G-47 Trooper misfires. 02784_ K-01 Serf collects debris. 02785_ G-47 Trooper destroyed. 02787_ K-01 Serf collects debris. 02789_ Slug Cannon destroyed. 02791_ Acquired 41 matter. 02791_ K-01 Serf collects debris. 02791_ W-25 Informer sends out distress signal. 02791_ G-47 Trooper misfires. 02792_ G-47 Trooper destroyed. 02792_ Destroyed Particle Gun. 02794_ G-47 Trooper destroyed. 02794_ K-01 Serf destroyed. 02795_ K-01 Serf collects debris. 02795_ U-05 Engineer builds a Wall. 02796_ Rocket Launcher destroyed. 02796_ Destroyed Rocket Launcher. Map ----- +----------------------------------------------------+ | ???????# #?????????????# #??? ????? | | ???????# #?????????????#######/######???? ????? | | ???????# ## ?????????##### ########??????? | | ??????? # ####""## ^ ^^ #??????? | | ??????? # / #??????? | | ??????? +?""" """ ####""## " T#?????? | | ??????? #??????????# # "" ##?????? | | ??????? #??????????# T # "" #??????? | | ???????######??????????# # """ ???????? | | ???????????????#???????# # "" ????????? | | ???????????????# ##########/## """ ???????? | | ??????????????## """ "??????? | | ???????????#?## g g b """?????????? | | ???????????+ """ " " " ?????????? | | ????????????### "Y "R" ??????????? | | ???????????????### """ """ """ ?????????? | | ?????????????????# """ ?????????? | | ?????????????????# """ ??????????? | | ?????????????????# Y ########???????????? | | ??????????????"??# #??????????????????? | | ??????????????"" # #####??????????????????? | | ???????????????" #####?????????????????? | | ?????????????????# % g #?????????????????? | | ????????????? # #?????????????????? | | ????????????????# #?????????????????? | | ??????????# % @ #?????????????????? | | ??????????# k #?????????????????? | | ??????????# Y #?????????????????? | | ??????????# # #?????????????????? | | ??????????# a # #?????????????????? | | ??????????? w ?# #########?????????????????? | | ??????????? #####??###?????????????????????????? | | ???????s?????????????????????????????????????????? | | ?????????????????????????????????????????????????? | | ?????????????????????????????????????????????????? | | ?????????????????????????????????????????????????? | | ?????????????????????????????????????????????????? | | ?????????????????????????????????????????????????? | | ?????????????????????????????????????????????????? | | ?????????????????????????????????????????????????? | | ?????????????????????????????????????????????????? | | ?????????????????????????????????????????????????? | | ?????????????????????????????????????????????????? | | ?????????????????????????????????????????????????? | | ?????????????????????????????????????????????????? | | ?????????????????????????????????????????????????? | | ?????????????????????????????????????????????????? | | ?????????????????????????????????????????????????? | | ?????????????????????????????????????????????????? | | ?????????????????????????????????????????????????? | +----------------------------------------------------+ Best States ------------- Heat Dissipation 31 Energy Generation 10 Energy Capacity 125 Matter Stores 300 Matter Capacity 300 Sight Range 16 Terrain Scan Density 10 Armor Coverage 150 Evasion (%) 50 Recoil Reduction 3 Kinecelleration 30 Salvage Targeting 3 Item Schematics ----------------- None Robot Schematics ------------------ None Fabricated ------------ Nothing Alien Tech Used ----------------- None Achievements -------------- Use The Force Challenges ------------ None Cogshop Purchases (16) ------------------------ Lrn. Tractor Beam (Loot Box) Datajack (599) Imp. Treads (874) Imp. Treads (874) Lgt. Ion Engine (599) Imp. Treads (874) Assault Rifle (599) Lgt. Armor Plating (585) Grenade Launcher (757) Lgt. Cannon (443) Gravmag System (Loot Box) Imp. Treads (662) Flak Gun (Loot Box) Kinecellerator (Loot Box) Adv. Salvage Targeting Computer (Loot Box) Hpw. Tractor Beam (Loot Box) Game ------ Seed GuidedMagneticStorage Manual? 0 Play Time 00:28:42 Cumulative 31.7 hours Start 2021.07.16 @ 13:23:52 End 2021.07.16 @ 13:54:05 Sessions 1 Manual Loads 0 Difficulty Rogue Special Mode AFD2019/Pay2Buy Game No. 23 Rogue 23 Adventurer 0 Explorer 0 Win Type - Total 0 Types 0/0/0/0/0/0/0/0/0 Lore% 25 Gallery% 40 Achievement% 28 Wizard Run 0 Options --------- ASCII 0 Keyboard 1 Movement Vi Keybinds 0 Fullscreen 2 Font 18/Cog Map View 76x50 Tactical HUD 1 Map Filters NONE Filters NONE Steam 0 RUN: e94db79b-bed4-4c5b-ba85-164047997818